fUSD/lending_fUSD_20250427
["ID","MTS","AMOUNT","RATE_DAILY","PERIOD"]
[359160121,1745752244892,-500.0,0.00019873,2]
[359160122,1745752244902,-174.005283,0.00019874,2]
[359160123,1745752244911,-174.005283,0.00019874,2]
[359160124,1745752244920,-174.005283,0.00019874,2]
[359160125,1745752244929,-174.005283,0.00019874,2]
[359160126,1745752244938,-151.0,0.00019874,2]
[359160127,1745752244947,-151.0,0.00019874,2]
[359160128,1745752244956,-9921.1571353,0.00019874,2]
[359160129,1745752244965,-220.015524,0.00019874,2]
[359160130,1745752244974,-51645.3715,0.00019874,2]
[359160131,1745752244983,-151.0,0.00019874,2]
[359160132,1745752244993,-151.0,0.00019874,2]
[359160133,1745752245001,-151.0,0.00019874,2]
[359160134,1745752245011,-151.0,0.00019874,2]
[359160135,1745752245020,-151.0,0.00019874,2]
[359160136,1745752245030,-151.0,0.00019874,2]
[359160137,1745752245039,-19630.8911737,0.00019874,2]
[359160138,1745752245048,-287.096119,0.00019874,2]
[359160139,1745752245058,-287.096119,0.00019874,2]
[359160140,1745752245067,-287.096119,0.00019874,2]
[359160141,1745752245077,-287.096119,0.00019874,2]
[359160142,1745752245086,-151.0,0.00019874,2]
[359160143,1745752245095,-151.0,0.00019874,2]
[359160144,1745752245104,-283.01029154,0.00019875,2]
[359160145,1745752245113,-12500.0,0.00019882,2]
[359160146,1745752245122,-167.15985191,0.00019886,2]
[359160147,1745752245131,-174.005283,0.00019887,2]
[359160148,1745752245141,-174.005283,0.00019887,2]
[359160149,1745752245150,-174.005283,0.00019887,2]
[359160150,1745752245159,-174.005283,0.00019887,2]
[359160151,1745752245168,-151.0,0.00019887,2]
[359160152,1745752245177,-151.0,0.00019887,2]
[359160153,1745752245186,-151.0,0.00019887,2]
[359160154,1745752245195,-190.512012,0.00019887,2]
[359160155,1745752245205,-287.096119,0.00019887,2]
[359160156,1745752245214,-287.096119,0.00019887,2]
[359160157,1745752245223,-151.0,0.00019887,2]
[359160158,1745752245232,-41003.23437827,0.00019887,2]
[359160159,1745752245241,-40132.69342611,0.0001989,2]
[359160160,1745752245250,-167.15985189,0.00019891,2]
[359160161,1745752245260,-174.005283,0.00019891,2]
[359160162,1745752245269,-174.005283,0.00019891,2]
[359160163,1745752245278,-154.177389,0.00019891,2]
[359160164,1745752245288,-278.595348,0.00019891,2]
[359160165,1745752245297,-151.0,0.00019891,2]
[359160166,1745752245307,-287.096119,0.00019891,2]
[359160167,1745752245316,-287.096119,0.00019891,2]
[359160168,1745752245327,-151.0,0.00019891,2]
[359160169,1745752245336,-12500.0,0.00019891,2]
[359160170,1745752245345,-796.0,0.00019891,2]
[359160171,1745752245355,-167.15985189,0.00019895,2]
[359160172,1745752245364,-166.97147331,0.00019899,2]
[359160173,1745752245373,-15982.50332211,0.000199,2]
[359160174,1745752245382,-12500.0,0.000199,2]
[359160175,1745752245392,-150.0,0.000199,2]
[359160176,1745752245401,-174.005283,0.000199,2]
[359160177,1745752245410,-174.00529,0.000199,2]
[359160178,1745752245421,-901.26,0.000199,2]
[359160179,1745752245431,-1151.69,0.000199,2]
[359160180,1745752245441,-161.91,0.000199,2]
[359160181,1745752245450,-150.0,0.000199,2]
[359160182,1745752245461,-799.84,0.000199,2]
[359160183,1745752245470,-360.34021756,0.000199,2]
[359160184,1745752245479,-151.0,0.000199,2]
[359160185,1745752245489,-167.15985189,0.000199,2]
[359160186,1745752245498,-283.01029154,0.000199,2]
[359160187,1745752245507,-161.91,0.000199,2]
[359160188,1745752245517,-1151.69,0.000199,2]
[359160189,1745752245526,-351.4,0.000199,2]
[359160190,1745752245535,-2227.96,0.000199,2]
[359160191,1745752245546,-161.91,0.000199,2]
[359160192,1745752245555,-351.4,0.000199,2]
[359160193,1745752245748,-153.57,0.000199,2]
[359160194,1745752245759,-287.096119,0.000199,2]
[359160195,1745752245769,-287.096127,0.000199,2]
[359160196,1745752245778,-260.39374,0.000199,2]
[359160197,1745752245789,-161.91,0.000199,2]
[359160198,1745752245801,-2303.38,0.000199,2]
[359160199,1745752245811,-151.19,0.000199,2]
[359160200,1745752245822,-150.0,0.000199,2]
[359160201,1745752245834,-351.4,0.000199,2]
[359160202,1745752245843,-2197.97420363,0.000199,2]
[359160203,1745752245852,-3123.73176182,0.000199,2]
[359160204,1745752245862,-351.4,0.000199,2]
[359160205,1745752245872,-150.0,0.000199,2]
[359160206,1745752245881,-150.0,0.000199,2]
[359160207,1745752245890,-382.92883201,0.000199,2]
[359160208,1745752245900,-188.59597844,0.000199,3]
[359160209,1745752245911,-3631.69698251,0.000199,2]
[359160210,1745752245921,-1309.79775849,0.0001997,2]
[359160211,1745752245933,-514.0,0.0001997,2]
[359160212,1745752245943,-404.45279961,0.0001997,2]
[359160213,1745752245953,-700.0,0.0001997,2]
[359160214,1745752245962,-642.92483347,0.00019973,2]
[359160215,1745752245972,-500.0,0.00019973,2]
[359160216,1745752245981,-500.0,0.00019973,2]
[359160217,1745752245991,-500.0,0.00019973,2]
[359160218,1745752246000,-500.0,0.00019973,2]
[359160219,1745752246009,-500.0,0.00019973,2]
[359160220,1745752246019,-500.0,0.00019973,2]
[359160221,1745752246028,-301.72993421,0.00019973,2]
[359160222,1745752246037,-500.0,0.00019973,2]
[359160223,1745752246046,-500.0,0.00019973,2]
[359160224,1745752246056,-500.0,0.00019973,2]
[359160225,1745752246065,-500.0,0.00019973,2]
[359160226,1745752246076,-500.0,0.00019973,2]
[359160227,1745752246086,-500.0,0.00019973,2]
[359160228,1745752246095,-500.0,0.00019973,2]
[359160229,1745752246104,-500.0,0.00019973,2]
[359160230,1745752246114,-500.93513417,0.00019973,2]
[359160231,1745752246123,-500.0,0.00019973,2]
[359160232,1745752246132,-500.59242922,0.00019973,2]
[359160233,1745752246142,-536.76792142,0.00019973,2]
[359160235,1745752246151,-153.7640085,0.00019973,2]
[359160236,1745752246160,-464.58445906,0.00019977,2]
[359160237,1745752246170,-438.21534763,0.00019984,2]
[359160238,1745752246179,-9832.77624925,0.00019985,2]
[359160239,1745752246188,-1000.0,0.00019985,2]
[359160240,1745752246198,-2000.0,0.00019985,2]
[359160241,1745752246207,-500.0,0.00019985,2]
[359160242,1745752246216,-300.0,0.00019985,2]
[359160243,1745752246226,-500.0,0.00019985,2]
[359160244,1745752246235,-300.0,0.00019985,2]
[359160245,1745752246244,-300.0,0.00019985,2]
[359160246,1745752246253,-1029.0,0.00019986,2]
[359160247,1745752246263,-9593.4858904,0.00019986,2]
[359160248,1745752246272,-9265.8146456,0.00019986,2]
[359160249,1745752246281,-8938.1434008,0.00019986,2]
[359160250,1745752246290,-49846.2229,0.00019986,2]
[359160251,1745752246300,-48047.0743,0.00019986,2]
[359160252,1745752246309,-46247.9257,0.00019986,2]
[359160253,1745752246319,-17510.1817622,0.00019986,2]
[359160254,1745752246329,-15389.4723507,0.00019986,2]
[359160255,1745752246338,-13268.7629393,0.00019986,2]
[359160256,1745752246348,-151.0,0.00019986,2]
[359160257,1745752246357,-151.0,0.00019986,2]
[359160258,1745752246367,-151.0,0.00019986,2]
[359160259,1745752246376,-151.0,0.00019986,2]
[359160260,1745752246385,-161.389856,0.00019986,2]
[359160261,1745752246394,-161.389856,0.00019986,2]
[359160262,1745752246404,-1057.94149079,0.00019989,2]
[359160263,1745752246414,-1057.94149079,0.0001999,2]
[359160264,1745752246423,-1057.94149079,0.0001999,2]
[359160265,1745752246433,-158.0,0.00019994,2]
[359160266,1745752246442,-263.23973991,0.00019994,2]
[359160267,1745752246452,-151.0,0.00019996,2]
[359160268,1745752246462,-151.0,0.00019996,2]
[359160269,1745752246471,-151.0,0.00019996,2]
[359160270,1745752246481,-151.0,0.00019996,2]
[359160271,1745752246490,-161.389856,0.00019996,2]
[359160272,1745752246499,-161.389856,0.00019996,2]
[359160273,1745752246509,-300.0,0.00019998,2]
[359160274,1745752246519,-300.0,0.00019999,2]
[359160275,1745752246528,-1000.0,0.00019999,2]
[359160276,1745752246538,-1000.0,0.00019999,2]
[359160277,1745752246547,-1000.0,0.00019999,2]
[359160278,1745752246556,-66751.00048034,0.00019999,2]
[359160279,1745752246566,-537.64812457,0.00019999,2]
[359160280,1745752246576,-68977.79173437,0.00019999,2]
[359160281,1745752246586,-56766.72,0.00019999,2]
[359160282,1745752246596,-165178.97322736,0.0002,2]
[359160283,1745752246606,-3245760.66474539,0.0002,2]
[359160284,1745752246616,-10205.86850434,0.0002,2]
[359160285,1745752246626,-364179.20179048,0.0002,2]
[359160287,1745752246878,-7682.282222,0.0002,2]
[359160288,1745752246890,-8881.10337,0.0002,2]
[359161177,1745752258173,500.0,0.00041096,30]
[359161190,1745752258433,477.0,0.00041096,30]
[359161191,1745752271600,430.95,0.00041095,120]
[359161192,1745752302199,157.75,0.0004,30]
[359161193,1745752302514,157.75,0.0004,30]
[359161194,1745752313657,1416.65,0.00018915,2]
[359161195,1745752313679,2000.0,0.00018915,2]
[359161196,1745752313700,2000.0,0.00018915,2]
[359161197,1745752313721,607.88140988,0.00018915,2]
[359161200,1745752341542,160.0,0.000407,63]
[359161201,1745752341944,160.0,0.000397,60]
[359161202,1745752342572,160.0,0.000387,57]
[359161203,1745752342994,312.0,0.000377,54]
[359161204,1745752352438,300.0,0.00032876,30]
[359161205,1745752352708,300.0,0.00032876,30]
[359161206,1745752352967,302.09781464,0.00032876,30]
[359161207,1745752359506,152.7,0.00015186,2]
[359161208,1745752371742,1333.0,0.00040658,120]
[359161209,1745752388216,401.5295403,0.000387,120]
[359161210,1745752392173,1239.41859012,0.00018984,2]
[359161211,1745752392193,2000.0,0.00018984,2]
[359161212,1745752392215,2000.0,0.00018984,2]
[359161213,1745752392236,856.09140988,0.00018984,2]
[359161214,1745752411785,600.0,0.00041096,30]
[359161215,1745752435338,600.0,0.00041096,30]
[359161216,1745752440054,281.27,0.00016712,2]
[359161217,1745752475012,188.1,0.000335,31]
[359161218,1745752475057,188.1,0.000335,31]
[359161219,1745752475113,188.1,0.000335,31]
[359161220,1745752475181,188.1,0.000335,31]
[359161221,1745752475240,188.1,0.000335,31]
[359161222,1745752475322,188.1,0.000335,31]
[359161223,1745752475398,188.1,0.000335,31]
[359161224,1745752475490,188.1,0.000335,31]
[359161225,1745752475534,188.1,0.000335,31]
[359161226,1745752475591,188.1,0.000335,31]
[359161227,1745752475649,188.1,0.000335,31]
[359161228,1745752475708,188.1,0.000335,31]
[359161229,1745752475784,188.1,0.00036,31]
[359161230,1745752475843,188.1,0.00036,31]
[359161231,1745752475897,188.1,0.00036,31]
[359161232,1745752475956,188.1,0.00036,31]
[359161233,1745752476060,188.1,0.00036,31]
[359161234,1745752476100,188.1,0.00036,31]
[359161235,1745752476140,188.1,0.00036,31]
[359161236,1745752476197,188.1,0.00036,31]
[359161237,1745752476257,188.1,0.00036,31]
[359161238,1745752476313,188.1,0.00036,31]
[359161239,1745752476372,188.1,0.00036,31]
[359161240,1745752476437,188.1,0.00036,31]
[359161241,1745752476653,188.1,0.00036,31]
[359161242,1745752476696,188.1,0.00036,31]
[359161243,1745752476740,188.1,0.00036,31]
[359161244,1745752476777,188.1,0.00036,31]
[359161245,1745752476812,188.1,0.00036,31]
[359161246,1745752476857,188.1,0.00036,31]
[359161247,1745752476928,188.1,0.00036,31]
[359161248,1745752476974,188.1,0.00036,31]
[359161249,1745752477213,188.1,0.00036,31]
[359161250,1745752477291,188.1,0.00036,31]
[359161251,1745752477326,188.1,0.000386,31]
[359161252,1745752477363,188.1,0.000386,31]
[359161253,1745752477402,188.1,0.00036,31]
[359161254,1745752477447,188.1,0.000386,31]
[359161255,1745752477483,188.1,0.00036,31]
[359161256,1745752477526,188.1,0.000386,31]
[359161257,1745752477584,188.1,0.000386,31]
[359161258,1745752477628,188.1,0.000386,31]
[359161259,1745752477669,188.1,0.000386,31]
[359161260,1745752477703,188.1,0.000386,31]
[359161261,1745752477752,188.1,0.000386,31]
[359161262,1745752477826,188.1,0.000386,31]
[359161263,1745752477890,188.1,0.000386,31]
[359161264,1745752477954,188.1,0.000386,31]
[359161265,1745752478003,188.1,0.000386,31]
[359161266,1745752478068,188.1,0.000386,31]
[359161267,1745752478136,188.1,0.000386,31]
[359161268,1745752478182,188.1,0.000386,31]
[359161269,1745752478241,188.1,0.000386,31]
[359161270,1745752478318,188.1,0.000386,31]
[359161271,1745752478377,188.1,0.000386,31]
[359161272,1745752478725,188.1,0.000386,31]
[359161273,1745752478765,188.1,0.000386,31]
[359161274,1745752478800,188.1,0.000386,31]
[359161275,1745752478839,188.1,0.000386,31]
[359161276,1745752478882,188.1,0.000386,31]
[359161277,1745752483076,600.0,0.00041096,30]
[359161278,1745752501397,151.6553832,0.000399,30]
[359161279,1745752514167,862.63859012,0.00018914,2]
[359161280,1745752514190,2000.0,0.00018914,2]
[359161281,1745752514219,2000.0,0.00018914,2]
[359161282,1745752514245,2000.0,0.00018914,2]
[359161283,1745752514269,2000.0,0.00018914,2]
[359161284,1745752514294,2000.0,0.00018914,2]
[359161285,1745752514319,200.0,0.00018914,2]
[359161286,1745752514343,2000.0,0.00018914,2]
[359161287,1745752514367,282.42140988,0.00018914,2]
[359161288,1745752533188,-566.0,0.00046209,30]
[359161289,1745752533214,-1767.0,0.00046209,30]
[359161290,1745752533238,-358.0,0.00046209,120]
[359161291,1745752533262,-1000.0,0.00046209,30]
[359161292,1745752533287,-389.51865111,0.00046209,60]
[359161293,1745752533310,-3000.0,0.00046209,30]
[359161294,1745752533335,-1255.0,0.00046209,30]
[359161295,1745752533360,-2685.97592031,0.00046209,120]
[359161296,1745752533384,-618.91999254,0.00046209,30]
[359161297,1745752533413,-203.76251597,0.00046209,120]
[359161298,1745752533439,-317.60880215,0.00046209,30]
[359161299,1745752533466,-250.58744092,0.00046209,30]
[359161300,1745752533492,-189.14038646,0.00046209,90]
[359161301,1745752533518,-278.84152602,0.00046209,120]
[359161302,1745752533543,-281.42369972,0.00046209,120]
[359161303,1745752533570,-155.27021166,0.00046209,30]
[359161304,1745752533599,-156.252192,0.00046209,30]
[359161305,1745752533625,-282.83837407,0.00046209,120]
[359161306,1745752533650,-1570.45525673,0.00046209,30]
[359161307,1745752533677,-1050.33053055,0.00046209,120]
[359161308,1745752533703,-367.2908423,0.00046209,120]
[359161309,1745752533730,-238.84507048,0.00046209,120]
[359161310,1745752533759,-366510.28863616,0.00046209,30]
[359161311,1745752534051,-638.04321613,0.00046209,30]
[359161312,1745752534076,-160.8979766,0.00046209,120]
[359161313,1745752534103,-1661.32631275,0.00046209,120]
[359161314,1745752534129,-1388.51097617,0.00046209,30]
[359161315,1745752534155,-690.9000202,0.00046209,120]
[359161316,1745752534180,-248.08619253,0.00046209,120]
[359161317,1745752534205,-972.73362683,0.00046209,60]
[359161318,1745752534230,-2444.40242344,0.00046209,30]
[359161319,1745752534256,-479.68218052,0.00046209,30]
[359161320,1745752534282,-233.07547404,0.00046209,45]
[359161321,1745752534308,-189.91009455,0.00046209,30]
[359161322,1745752534335,-1996.43186861,0.00046209,30]
[359161323,1745752534363,-2030.7,0.00046209,30]
[359161324,1745752534390,-192.0,0.00046209,120]
[359161325,1745752534416,-627.0,0.00046209,30]
[359161326,1745752534442,-314.0,0.00046209,30]
[359161327,1745752534468,-187.56945676,0.00046209,120]
[359161328,1745752534493,-157.0,0.00046209,30]
[359161329,1745752534518,-2400.0,0.00046209,120]
[359161330,1745752534552,-2500.0,0.00046209,30]
[359161331,1745752534582,-12581.70659912,0.00046209,30]
[359161332,1745752534612,-1150.7019108,0.00046209,120]
[359161333,1745752534640,-297.32713934,0.00046209,120]
[359161334,1745752534667,-1011.27259622,0.00046209,120]
[359161335,1745752534696,-500.0,0.00046209,120]
[359161336,1745752534724,-500.0,0.00046209,120]
[359161337,1745752534750,-500.0,0.00046209,120]
[359161338,1745752534776,-500.0,0.00046209,120]
[359161339,1745752534802,-500.0,0.00046209,120]
[359161340,1745752534828,-500.0,0.00046209,120]
[359161341,1745752534853,-500.0,0.00046209,120]
[359161342,1745752534878,-500.0,0.00046209,120]
[359161343,1745752534903,-500.0,0.00046209,120]
[359161344,1745752534928,-500.0,0.00046209,120]
[359161345,1745752534956,-500.0,0.00046209,120]
[359161346,1745752534981,-552.1586744,0.00046209,120]
[359161347,1745752535008,-500.0,0.00046209,120]
[359161348,1745752535033,-500.0,0.00046209,120]
[359161349,1745752535059,-500.0,0.00046209,120]
[359161350,1745752535083,-500.0,0.00046209,120]
[359161351,1745752535110,-500.0,0.00046209,120]
[359161352,1745752535136,-500.0,0.00046209,120]
[359161353,1745752535162,-500.0,0.00046209,120]
[359161354,1745752535188,-500.0,0.00046209,120]
[359161355,1745752535212,-500.0,0.00046209,120]
[359161356,1745752535238,-500.0,0.00046209,120]
[359161357,1745752535263,-500.0,0.00046209,120]
[359161358,1745752535287,-500.0,0.00046209,120]
[359161359,1745752535312,-500.0,0.00046209,120]
[359161360,1745752535337,-169.3705783,0.00046209,120]
[359161361,1745752535548,150.5,0.0004109,120]
[359161362,1745752535594,150.5,0.0004109,120]
[359161363,1745752535631,150.5,0.0004108,120]
[359161364,1745752535675,150.5,0.0004108,120]
[359161365,1745752535709,150.5,0.0004109,120]
[359161366,1745752535745,150.5,0.0004107,120]
[359161367,1745752535779,150.5,0.0004107,120]
[359161368,1745752535809,150.5,0.0004108,120]
[359161369,1745752535842,150.5,0.0004109,120]
[359161370,1745752535876,150.5,0.0004109,120]
[359161371,1745752535905,150.5,0.0004107,120]
[359161372,1745752535935,197.69,0.0004108,120]
[359161373,1745752536028,150.5,0.0004108,120]
[359161374,1745752536058,150.5,0.0004109,120]
[359161375,1745752536091,181.19,0.0004107,120]
[359161376,1745752536120,150.5,0.0004108,120]
[359161377,1745752536160,150.5,0.0004107,120]
[359161378,1745752551592,1000.0,0.00041095,30]
[359161379,1745752551845,200.0,0.00041095,30]
[359161380,1745752560419,435.74109189,0.000372,120]
[359161381,1745752565364,435.74109185,0.000372,120]
[359161382,1745752570372,435.74109185,0.000372,120]
[359161383,1745752575401,435.74109185,0.000372,120]
[359161384,1745752580367,435.74109185,0.000372,120]
[359161385,1745752613626,395.73,0.00017024,2]
[359161386,1745752613796,395.73,0.00019288,2]
[359161387,1745752642226,197.38091126,0.00040734,30]
[359161388,1745752644808,700.0,0.0004002,30]
[359161389,1745752645163,700.0,0.0004008,30]
[359161390,1745752645542,700.0,0.00040165,30]
[359161391,1745752645886,700.0,0.00040417,30]
[359161392,1745752646264,700.0,0.00040569,30]
[359161393,1745752646618,700.0,0.00040726,30]
[359161394,1745752646993,1154.01619194,0.00041015,30]
[359161395,1745752649537,507.34385721,0.00040005,30]
[359161396,1745752652782,531.29652422,0.00040715,30]
[359161397,1745752655902,500.0,0.00040241,30]
[359161398,1745752656308,500.0,0.00040293,30]
[359161399,1745752656675,500.0,0.00040629,30]
[359161400,1745752657024,972.66696505,0.00040709,30]
[359161401,1745752700370,1000.0,0.00041095,30]
[359161402,1745752709875,2048.279,0.00037653,49]
[359161403,1745752710034,163.079,0.00037653,49]
[359161404,1745752711123,32803.40756731,0.0004,30]
[359161405,1745752880576,600.0,0.00041095,30]
[359161406,1745752880822,161.91845434,0.00041095,30]
[359161407,1745752932101,350.0,0.00041096,30]
[359161408,1745752946533,500.0,0.00040237,30]
[359161409,1745752947094,500.0,0.0004031,30]
[359161410,1745752947421,500.0,0.00040602,30]
[359161411,1745752948261,500.0,0.00040604,30]
[359161412,1745752948639,500.0,0.00040772,30]
[359161413,1745752948970,500.0,0.00040812,30]
[359161414,1745752949324,500.0,0.00040839,30]
[359161415,1745752949661,500.0,0.00040904,30]
[359161416,1745752950003,500.0,0.00040912,30]
[359161417,1745752950334,500.0,0.0004104,30]
[359161418,1745752950661,500.0,0.00041062,30]
[359161419,1745752951010,700.0,0.0004108,30]
[359161420,1745752955100,518.75043038,0.00040465,30]
[359161421,1745752955897,500.0,0.00040706,30]
[359161422,1745752958454,1000.0,0.00018975,2]
[359161423,1745753012081,942.59,0.00018966,2]
[359161424,1745753084713,153.66,0.000335,31]
[359161425,1745753084759,153.66,0.000335,31]
[359161426,1745753084800,153.66,0.000335,31]
[359161427,1745753084836,153.66,0.000335,31]
[359161428,1745753084876,153.66,0.000335,31]
[359161429,1745753084923,153.66,0.000335,31]
[359161430,1745753084971,153.66,0.000366,31]
[359161431,1745753085015,153.66,0.000366,31]
[359161432,1745753085056,153.66,0.000366,31]
[359161433,1745753085114,153.66,0.000366,31]
[359161434,1745753085156,153.66,0.000366,31]
[359161435,1745753085199,153.66,0.000366,31]
[359161436,1745753085240,153.66,0.000366,31]
[359161437,1745753085291,153.66,0.000366,31]
[359161438,1745753085327,153.66,0.000366,31]
[359161439,1745753085375,153.66,0.000366,31]
[359161440,1745753085427,153.66,0.000366,31]
[359161441,1745753085472,153.66,0.000366,31]
[359161442,1745753085534,153.66,0.000397,31]
[359161443,1745753085596,153.66,0.000397,31]
[359161444,1745753085647,153.66,0.000397,31]
[359161445,1745753085710,153.66,0.000397,31]
[359161446,1745753085769,153.66,0.000397,31]
[359161447,1745753085838,153.66,0.000397,31]
[359161448,1745753085898,153.66,0.000397,31]
[359161449,1745753085958,153.66,0.000397,31]
[359161450,1745753086015,153.66,0.000397,31]
[359161451,1745753086075,153.66,0.000397,31]
[359161452,1745753086156,153.66,0.000397,31]
[359161453,1745753086448,153.66,0.000397,31]
[359161454,1745753110567,1631.21617042,0.000154,2]
[359161455,1745753134468,269.86111332,0.00037808,60]
[359161456,1745753150865,1000.0,0.00032876,30]
[359161457,1745753151095,1000.0,0.00032876,30]
[359161458,1745753151993,1000.0,0.00032876,30]
[359161459,1745753152049,1000.0,0.00032876,30]
[359161460,1745753152201,1000.0,0.00032876,30]
[359161461,1745753152504,1000.0,0.00032876,30]
[359161462,1745753152543,8259.15665554,0.00041,30]
[359161463,1745753152729,1000.0,0.00032876,30]
[359161464,1745753152974,1000.0,0.00032876,30]
[359161465,1745753153215,1000.0,0.00032876,30]
[359161466,1745753153442,1000.0,0.00032876,30]
[359161467,1745753153711,1000.0,0.00032876,30]
[359161468,1745753153955,1000.0,0.00032876,30]
[359161469,1745753154193,1000.0,0.00032876,30]
[359161470,1745753154425,1000.0,0.00032876,30]
[359161471,1745753154669,1000.0,0.00032876,30]
[359161472,1745753154792,1333.0,0.00040658,120]
[359161473,1745753154904,221.20707633,0.00032876,30]
[359161474,1745753167746,1775.60042976,8e-05,2]
[359161475,1745753181201,413.0,0.00041095,120]
[359161476,1745753184927,5039.83477098,0.00041,30]
[359161477,1745753191622,1976.70007288,0.00015,2]
[359161479,1745753197637,186.99,0.00032877,30]
[359161480,1745753197863,186.99,0.00038356,30]
[359161481,1745753201125,157.75,0.0004,30]
[359161482,1745753201957,157.75,0.0004,30]
[359161483,1745753241160,500.0,0.00040247,30]
[359161484,1745753241546,500.0,0.00040582,30]
[359161485,1745753241771,500.0,0.00040741,30]
[359161486,1745753242084,500.0,0.00040749,30]
[359161487,1745753245217,500.0,0.00040787,30]
[359161488,1745753247167,540.80694648,0.00040892,30]
[359161489,1745753248518,500.0,0.00040764,30]
[359161490,1745753281385,2113.37064071,0.0003254,30]
[359161491,1745753283808,400.0,0.000398,120]
[359161492,1745753290891,271.69932262,0.0004,30]
[359161493,1745753296240,400.0,0.0004,120]
[359161494,1745753306780,153.93,0.00018876,2]
[359161495,1745753318206,804.86025094,0.00039,120]
[359161496,1745753319397,540.67136275,0.0004,30]
[359161497,1745753322030,160.36346268,0.0004,120]
[359161498,1745753326523,188.20154616,0.00013368,2]
[359161499,1745753328479,168.76920812,0.0004,120]
[359161503,1745753344231,242.0,0.000407,30]
[359161512,1745753375215,502.13,0.00018876,2]
[359161513,1745753412115,331.58085,0.00041088,30]
[359161514,1745753412702,331.58085,0.00040888,30]
[359161515,1745753429089,373.0,0.000407,30]
[359161516,1745753430879,250.0,0.00017,2]
[359161538,1745753431470,-200.0,0.00019522,2]
[359161539,1745753431480,-200.0,0.00019603,2]
[359161540,1745753431489,-300.0,0.0001967,2]
[359161541,1745753431499,-1003.13245234,0.0001967,2]
[359161542,1745753431524,-196.86754766,0.0001967,2]
[359161543,1745753431534,-152.35290128,0.00019671,2]
[359161544,1745753431582,-709.95288138,0.00019671,2]
[359161545,1745753431635,-4968.23170029,0.00019671,2]
[359161557,1745753431946,300.0,0.00019,2]
[359161893,1745753437423,-7425.56821705,0.00019671,2]
[359161894,1745753437434,-500.0,0.00019681,2]
[359161895,1745753437444,-735.23249726,0.00019752,2]
[359161896,1745753437454,-2500.0,0.0001977,2]
[359161897,1745753437463,-1413.9564824,0.00019799,2]
[359161898,1745753437473,-341.23528707,0.0001983,2]
[359161899,1745753437483,-400.0,0.00019868,2]
[359161900,1745753437493,-562.17,0.00019868,2]
[359161901,1745753437503,-400.0,0.00019868,2]
[359161902,1745753437512,-251.75250388,0.00019868,2]
[359161903,1745753437521,-400.0,0.00019868,2]